bitfinex/quotes_SOLUSD_20241117
["timestamp","ask_amount","ask_price","bid_price","bid_amount"]
[1731816462846,21.92197702,226.07,225.97,21.92197702]
[1731816463427,21.92197702,226.05,225.95,21.92197702]
[1731816463647,21.92197702,226.04,225.95,0.12549]
[1731816464329,26.34557702,226.06,225.93,0.1]
[1731816464545,4.4236,226.06,225.99,21.92197702]
[1731816465135,21.92197702,226.05,225.93,0.1]
[1731816465340,21.92197702,226.05,225.95,21.92197702]
[1731816465654,4.4239,226.04,225.99,21.92197702]
[1731816466350,4.4239,226.04,225.98,21.92197702]
[1731816467150,21.92197702,226.05,225.96,21.92197702]
[1731816467455,4.4236,226.06,225.98,21.92197702]
[1731816467654,21.92197702,226.05,225.97,0.25098]
[1731816467860,21.92197702,226.01,225.93,0.1]
[1731816468150,21.92197702,226.05,225.96,0.25098]
[1731816468554,4.4236,226.06,225.98,0.34465462]
[1731816468764,12.71158401,226.21,226.07,70.1]
[1731816469049,12.71158401,226.21,226.06,0.25098]
[1731816469050,0.04848401,226.21,226.2,22.17295702]
[1731816469440,0.04848401,226.21,226.09,0.1]
[1731816469657,0.04848401,226.21,226.05,21.92197702]
[1731816469658,21.92197702,226.12,226.05,21.92197702]
[1731816469834,21.92197702,226.12,225.99,0.1]
[1731816469835,0.04848401,226.21,226.11,21.92197702]
[1731816470345,21.92197702,226.14,226.05,21.92197702]
[1731816470532,21.92197702,226.12,226.03,21.92197702]
[1731816470742,21.92197702,226.08,226.0,0.1]
[1731816470930,0.04848401,226.21,226.05,21.92197702]
[1731816470931,21.92197702,226.14,226.05,21.92197702]
[1731816471354,4.4222,226.13,226.03,21.92197702]
[1731816471659,4.4222,226.13,226.07,21.92197702]
[1731816472535,4.4222,226.13,226.05,21.92197702]
[1731816473142,4.4222,226.13,226.03,21.92197702]
[1731816473336,21.92197702,226.12,226.04,0.1]
[1731816473635,21.92197702,226.08,225.97,0.1]
[1731816473849,21.92197702,226.02,225.96,0.1]
[1731816474046,21.92197702,226.04,225.96,0.1]
[1731816474570,21.92197702,226.0,225.91,0.1]
[1731816474861,21.92197702,226.1,225.87,21.92197702]
[1731816474862,21.92197702,225.96,225.87,21.92197702]
[1731816475060,21.92197702,225.94,225.85,21.92197702]
[1731816475558,21.92197702,225.94,225.86,0.1]
[1731816475748,21.92197702,225.96,225.87,21.92197702]
[1731816475931,21.92197702,225.96,225.85,21.92197702]
[1731816476355,21.92197702,225.91,225.83,0.1]
[1731816476860,4.4265,225.91,225.84,35.66834547]
[1731816477551,4.4265,225.91,225.82,35.66834547]
[1731816478051,35.66834547,225.83,225.75,37.05658564]
[1731816478255,35.66834547,225.85,225.75,35.66834547]
[1731816478442,35.66834547,225.83,225.74,1.38824017]
[1731816478637,35.66834547,225.81,225.73,37.05658564]
[1731816478837,4.4286,225.8,225.73,35.66834547]
[1731816479160,4.4275,225.86,225.79,35.66834547]
[1731816479470,4.4275,225.86,225.77,35.66834547]
[1731816479752,4.4275,225.86,225.73,35.76834547]
[1731816479753,35.76834547,225.83,225.73,35.76834547]
[1731816479955,35.66834547,225.85,225.75,35.66834547]
[1731816480140,35.66834547,225.85,225.77,35.66834547]
[1731816480453,15.5963,225.86,225.71,35.66834547]
[1731816480454,35.66834547,225.81,225.71,35.66834547]
[1731816480669,20.0,225.82,225.67,0.1]
[1731816480842,0.1,225.8,225.72,35.66834547]
[1731816481154,4.4288,225.79,225.72,35.66834547]
[1731816481365,4.4288,225.79,225.74,35.66834547]
[1731816481577,31.7078,225.95,225.8,0.1]
[1731816481863,4.5247,226.0,225.86,35.76834547]
[1731816482050,4.4247,226.0,225.97,35.66834547]
[1731816482359,4.4228,226.1,226.0,0.1]
[1731816482555,4.5228,226.1,226.04,35.66834547]
[1731816482752,51.24814547,226.1,226.0,35.80106576]
[1731816482937,4.4228,226.1,226.08,35.66834547]
[1731816483737,4.4228,226.1,226.04,35.66834547]
[1731816484240,4.4228,226.1,226.02,35.66834547]
[1731816484466,4.4228,226.1,226.06,35.66834547]
[1731816484767,4.4228,226.1,226.04,35.66834547]
[1731816485058,4.4228,226.1,226.02,35.66834547]
[1731816485554,35.66834547,226.09,226.0,0.23272029]
[1731816485748,35.66834547,226.09,226.0,0.13272029]
[1731816485950,4.4228,226.1,226.03,0.1]
[1731816486255,12.0723,226.11,226.05,0.12549]
[1731816486453,35.66834547,226.18,226.1,35.66834547]
[1731816486635,35.66834547,226.19,226.08,35.66834547]
[1731816486839,35.66834547,226.15,226.06,35.66834547]
[1731816487071,35.66834547,226.13,226.02,35.66834547]
[1731816487360,35.66834547,226.11,226.0,35.80106576]
[1731816487559,15.477,226.14,226.0,0.13272029]
[1731816487560,20.0,226.08,226.0,0.13272029]
[1731816487763,35.66834547,226.05,226.0,0.13272029]
[1731816487943,35.66834547,226.09,226.0,0.13272029]
[1731816488143,20.0,226.08,226.0,0.13272029]
[1731816488339,20.0,226.08,225.91,35.66834547]
[1731816488340,35.66834547,226.01,225.91,35.66834547]
[1731816488663,12.5584,226.02,225.89,35.66834547]
[1731816488664,35.66834547,225.99,225.89,35.66834547]
[1731816488841,12.5584,226.02,225.95,35.66834547]
[1731816489053,4.4245,226.01,225.99,35.66834547]
[1731816489360,4.4238,226.05,226.02,0.1]
[1731816489563,4.4238,226.05,226.02,35.76834547]
[1731816489741,4.4238,226.05,226.0,35.66834547]
[1731816490445,4.4228,226.1,226.05,0.1]
[1731816490751,4.4228,226.1,226.07,35.76834547]
[1731816491153,36.43730899,226.2,226.09,35.66834547]
[1731816491353,48.22674547,226.22,226.12,35.66834547]
[1731816491561,4.421,226.19,226.12,35.66834547]
[1731816491966,4.421,226.19,226.1,35.66834547]
[1731816492171,4.421,226.19,226.12,35.76834547]
[1731816492343,4.421,226.19,226.12,35.66834547]
[1731816492542,4.421,226.19,226.14,35.76834547]
[1731816492743,4.421,226.19,226.15,0.1]
[1731816492964,4.421,226.19,226.16,35.66834547]
[1731816493163,35.66834547,226.2,226.07,0.1]
[1731816493371,35.66834547,226.14,226.04,35.66834547]
[1731816493553,35.66834547,226.12,226.02,35.66834547]
[1731816494143,35.66834547,226.14,226.04,35.66834547]
[1731816494467,35.66834547,226.14,225.96,35.66834547]
[1731816494468,35.66834547,226.12,226.02,35.66834547]
[1731816494961,0.1,226.16,226.02,35.66834547]
[1731816495169,0.1,226.16,225.98,0.1]
[1731816495170,15.477,226.14,226.04,35.66834547]
[1731816495367,35.66834547,226.11,226.02,35.66834547]
[1731816495546,20.0,226.13,226.05,35.66834547]
[1731816495746,4.422,226.14,226.09,35.66834547]
[1731816495946,0.4261164,226.18,226.12,35.76834547]
[1731816496159,0.4261164,226.18,226.17,35.76834547]
[1731816497856,0.4261164,226.18,226.17,35.66834547]
[1731816499350,4.4214,226.17,226.1,35.66834547]
[1731816499551,4.4214,226.17,226.12,35.66834547]
[1731816499869,4.4214,226.17,226.16,35.66834547]
[1731816501373,4.4214,226.17,226.11,35.66834547]
[1731816502453,0.4261164,226.18,226.16,0.1]
[1731816502671,0.4261164,226.18,226.17,35.66834547]
[1731816502872,0.04848401,226.21,226.2,0.1]
[1731816503089,4.59467454,226.29,226.2,71.68767094]
[1731816503261,4.59467454,226.29,226.28,0.1]
[1731816503456,4.59467454,226.29,226.28,35.76834547]
[1731816503664,0.17547454,226.29,226.28,35.76834547]
[1731816503875,4.4171,226.39,226.34,0.1]
[1731816504082,4.4171,226.39,226.38,35.66834547]
[1731816505469,4.4171,226.39,226.38,35.76834547]
[1731816505783,0.5137097,226.41,226.38,0.1]
[1731816506077,4.9305097,226.41,226.39,35.66834547]
[1731816506281,4.9305097,226.41,226.4,0.1]
[1731816506657,0.5137097,226.41,226.4,0.1]
[1731816507862,33.1073,226.54,226.4,0.1]
[1731816507863,16.09530537,226.88,226.86,0.1]
[1731816508062,27.36312894,226.94,226.8,0.1]
[1731816508063,0.17634286,227.04,227.01,0.1]
[1731816508271,4.4012,227.21,227.09,0.1]
[1731816508463,4.5687606,227.21,227.16,35.66834547]
[1731816508678,4.5687606,227.21,227.19,35.66834547]
[1731816509067,4.5687606,227.21,227.16,35.66834547]
[1731816509263,0.1675606,227.21,227.2,35.66834547]
[1731816509481,0.1675606,227.21,227.2,35.91932547]
[1731816509671,0.1675606,227.21,227.2,71.68767094]
[1731816510273,0.1675606,227.21,227.2,35.91932547]
[1731816511185,0.1675606,227.21,227.18,35.66834547]
[1731816511383,0.1675606,227.21,227.17,0.25098]
[1731816511592,0.1675606,227.21,227.2,36.01300009]
[1731816511884,0.1675606,227.21,227.2,35.91932547]
[1731816512096,0.800746,227.33,227.2,35.91932547]
[1731816512266,0.800746,227.33,227.21,6.37431941]
[1731816512458,35.66834547,227.29,227.17,0.12549]
[1731816512676,5.199646,227.33,227.19,0.12549]
[1731816512677,35.66834547,227.31,227.19,0.12549]
[1731816512868,5.199646,227.33,227.16,35.66834547]
[1731816513072,40.06794547,227.29,227.18,35.66834547]
[1731816513386,0.800746,227.33,227.24,35.66834547]
[1731816513576,0.800746,227.33,227.26,35.66834547]
[1731816513767,0.800746,227.33,227.27,35.66834547]
[1731816513969,1.0,227.37,227.27,35.76834547]
[1731816514185,1.0,227.37,227.28,36.11932547]
[1731816514186,2.1025204,227.33,227.28,36.11932547]
[1731816514364,2.1025204,227.33,227.31,0.25098]
[1731816515181,2.1025204,227.33,227.29,0.09367462]
[1731816515383,2.1025204,227.33,227.31,0.09367462]
[1731816515686,2.1025204,227.33,227.31,0.34465462]
[1731816515883,2.1025204,227.33,227.32,0.35098]
[1731816516089,2.1025204,227.33,227.32,70.54465462]
[1731816516386,2.1025204,227.33,227.32,0.44465462]
[1731816516588,2.1025204,227.33,227.32,0.54465462]
[1731816516788,2.1025204,227.33,227.32,36.11300009]
[1731816516998,2.1025204,227.33,227.32,36.01300009]
[1731816517692,1.0,227.37,227.34,0.25098]
[1731816517986,0.2402084,227.46,227.37,0.1]
[1731816518287,0.03175737,227.46,227.42,0.09367462]
[1731816518792,0.03175737,227.46,227.45,35.66834547]
[1731816519086,0.03175737,227.46,227.4,0.1]
[1731816519286,0.03175737,227.46,227.43,35.66834547]
[1731816519787,0.03175737,227.46,227.45,35.66834547]
[1731816519994,15.769273,227.55,227.46,0.25098]
[1731816520291,15.769273,227.55,227.5,35.66834547]
[1731816521170,15.769273,227.55,227.48,35.66834547]
[1731816521368,35.66834547,227.51,227.42,35.66834547]
[1731816521790,35.66834547,227.53,227.42,35.66834547]
[1731816521990,35.66834547,227.53,227.44,35.66834547]
[1731816522197,15.769273,227.55,227.46,35.66834547]
[1731816522382,35.66834547,227.64,227.36,35.66834547]
[1731816522383,0.1,227.79,227.53,35.66834547]
[1731816522586,40.06024547,227.69,227.59,35.66834547]
[1731816522769,36.43293107,227.68,227.58,35.66834547]
[1731816522970,36.43293107,227.68,227.59,0.12549]
[1731816523174,0.7645856,227.68,227.61,0.12549]
[1731816523381,0.02124118,227.67,227.65,35.66834547]
[1731816523683,0.02124118,227.67,227.66,0.12549]
[1731816523981,0.02124118,227.67,227.66,0.21916462]
[1731816524183,0.7645856,227.68,227.66,0.21916462]
[1731816524184,0.6391856,227.68,227.66,0.22549]
[1731816524381,0.6391856,227.68,227.67,35.76834547]
[1731816524586,35.97241942,227.88,227.73,70.1]
[1731816524779,35.97241942,227.88,227.78,35.66834547]
[1731816525093,0.30407395,227.88,227.8,35.66834547]
[1731816525297,0.30407395,227.88,227.86,35.66834547]
[1731816525478,0.30407395,227.88,227.87,0.12549]
[1731816526093,111.998246,228.0,227.87,0.87714232]
[1731816526273,111.998246,228.0,227.91,35.66834547]
[1731816526274,147.66659147,228.0,227.91,35.66834547]
[1731816526468,35.66834547,227.98,227.89,35.66834547]
[1731816526668,111.998246,228.0,227.93,0.09367462]
[1731816526979,111.998246,228.0,227.98,35.66834547]
[1731816527290,4.3861,227.99,227.79,0.1]
[1731816527492,35.66834547,227.98,227.87,35.66834547]
[1731816527695,10.9495,228.32,228.05,0.1]
[1731816527880,35.66834547,228.14,228.08,0.1]
[1731816528081,35.66834547,228.12,228.08,0.1]
[1731816528286,35.66834547,228.13,228.08,0.1]
[1731816528474,35.66834547,228.13,228.02,35.76834547]
[1731816528475,6.84543051,228.29,227.99,0.1]
[1731816528793,254.82009903,228.34,228.0,0.1]
[1731816528976,0.09367462,228.24,228.01,0.1]
[1731816529172,28.6646,228.24,228.08,0.1]
[1731816529497,15.3346,228.24,228.02,0.1]
[1731816529670,35.66834547,228.03,228.02,0.1]
[1731816530200,35.66834547,228.03,228.0,0.1]
[1731816530403,35.66834547,228.03,227.87,35.93768377]
[1731816530404,71.33669094,228.01,227.87,0.2693383]
[1731816530578,35.66834547,227.88,227.87,0.2693383]
[1731816530781,35.66834547,227.88,227.67,12.5654]
[1731816530782,35.66834547,227.88,227.77,0.1]
[1731816531078,35.66834547,227.92,227.78,0.1]
[1731816531282,35.66834547,227.92,227.72,0.1]
[1731816531283,0.09367462,227.89,227.72,0.1]
[1731816531490,0.09367462,227.89,227.7,0.1]
[1731816531679,0.25098,227.88,227.67,0.1]
[1731816531878,0.25098,227.86,227.64,0.1]
[1731816532198,23.776884,227.84,227.63,0.1]
[1731816532493,23.776884,227.9,227.66,0.1]
[1731816532672,35.66834547,227.69,227.66,0.1]
[1731816533094,35.66834547,227.69,227.68,0.1]
[1731816533278,35.66834547,227.69,227.64,0.1]
[1731816533476,35.66834547,227.66,227.61,0.1]
[1731816533682,35.66834547,227.64,227.61,0.1]
[1731816533891,35.66834547,227.66,227.63,0.1]
[1731816534216,71.33669094,227.64,227.58,0.1]
[1731816534394,35.66834547,227.59,227.58,0.1]
[1731816534602,35.66834547,227.59,227.54,0.1]
[1731816534803,35.66834547,227.55,227.51,0.9894431]
[1731816535092,35.66834547,227.64,227.53,0.1]
[1731816535297,31.4996,228.18,227.86,0.1]
[1731816535484,31.4996,228.34,228.05,0.1]
[1731816535682,10.9495,228.32,228.03,0.1]
[1731816535891,0.1,228.29,228.03,0.1]
[1731816536084,13.33,228.31,228.05,0.1]
[1731816536280,10.9495,228.32,228.07,0.1]
[1731816536593,35.31092899,228.22,228.13,35.41092899]
[1731816536775,35.31092899,228.24,228.17,0.1]
[1731816536972,35.31092899,228.3,228.19,35.41092899]
[1731816537301,35.31092899,228.28,228.2,0.1]
[1731816537598,35.31092899,228.28,228.06,35.31092899]
[1731816537599,35.31092899,228.35,228.26,0.1]
[1731816537805,17.507145,228.57,228.3,0.1]
[1731816537981,35.31092899,228.31,228.24,0.1]
[1731816538300,35.31092899,228.25,228.15,0.1]
[1731816538489,0.1,228.26,228.04,0.1]
[1731816538701,4.3805,228.28,228.06,0.1]
[1731816538996,223.53225356,228.28,227.98,0.1]
[1731816539293,0.1,228.21,228.0,0.1]
[1731816539492,35.31092899,228.01,227.98,0.1]
[1731816539695,35.31092899,228.2,228.06,0.1]
[1731816539903,35.31092899,228.2,227.88,17.524916]
[1731816539904,35.31092899,228.2,228.03,0.1]
[1731816540278,35.31092899,228.2,227.97,0.1]
[1731816540480,0.25098,228.19,227.99,0.1]
[1731816540786,24.027864,228.18,227.95,0.1]
[1731816540982,4.3823,228.19,227.99,0.1]
[1731816540983,24.3823,228.19,227.99,0.1]
[1731816541182,0.1,228.15,227.91,0.1]
[1731816541390,35.31092899,228.06,227.93,0.1]
[1731816541582,35.31092899,228.06,227.9,0.1]
[1731816541987,35.31092899,228.06,227.88,0.1]
[1731816542279,35.31092899,228.06,227.92,0.1]
[1731816542485,35.31092899,228.06,227.98,0.1]
[1731816542682,35.31092899,228.06,227.94,0.1]
[1731816542977,35.31092899,228.06,227.97,0.1]
[1731816543181,34.81092899,228.06,227.94,0.1]
[1731816543381,34.81092899,228.06,227.92,0.1]
[1731816543593,0.1,228.23,227.82,17.530512]
[1731816543594,4.3813,228.24,228.04,0.1]
[1731816543786,4.3813,228.24,227.82,17.530512]
[1731816543787,4.3813,228.24,228.02,0.1]
[1731816543989,4.4813,228.24,228.0,0.1]
[1731816544215,4.379,228.36,228.1,0.1]
[1731816544401,44.6613,228.58,227.99,70.0]
[1731816544402,35.31092899,228.35,228.27,0.1]
[1731816544783,35.31092899,228.31,228.26,0.1]
[1731816545198,35.31092899,228.29,228.2,0.1]
[1731816545397,35.31092899,228.24,228.2,0.1]
[1731816546012,35.31092899,228.22,228.18,0.1]
[1731816546186,35.31092899,228.2,228.09,0.1]
[1731816546387,35.31092899,228.2,227.94,30.3514]
[1731816546388,35.31092899,228.1,228.02,0.1]
[1731816546585,35.31092899,228.09,228.05,0.1]
[1731816546787,35.31092899,228.09,228.07,0.1]
[1731816546998,35.31092899,228.11,228.06,0.1]
[1731816547896,35.31092899,228.09,228.05,0.1]
[1731816548086,35.31092899,228.07,228.03,0.1]
[1731816548605,35.31092899,228.05,227.97,0.1]
[1731816548813,35.31092899,228.05,227.9,0.1]
[1731816548814,35.31092899,227.99,227.95,0.1]
[1731816549106,35.31092899,228.01,227.98,0.1]
[1731816549303,35.31092899,228.01,227.96,0.1]
[1731816549501,0.08966885,227.97,227.96,0.1]
[1731816549908,0.08966885,227.97,227.96,35.41092899]
[1731816550291,0.08966885,227.97,227.96,0.1]
[1731816550710,0.08966885,227.97,227.94,0.1]
[1731816551215,35.40059784,227.97,227.92,0.1]
[1731816551405,35.31092899,227.95,227.9,0.1]
[1731816551595,35.31092899,227.96,227.87,35.31092899]
[1731816551804,35.31092899,227.94,227.85,35.31092899]
[1731816552208,35.31092899,227.92,227.86,2.19351009]
[1731816552605,35.31092899,227.89,227.86,2.19351009]
[1731816552914,35.31092899,227.91,227.86,2.19351009]
[1731816553406,35.31092899,227.89,227.86,2.19351009]
[1731816553996,4.3867,227.96,227.65,1.33162284]
[1731816553997,0.1,227.84,227.65,1.33162284]
[1731816554313,35.31092899,227.77,227.73,0.1]
[1731816554502,13.14,227.95,227.71,0.1]
[1731816554696,35.31092899,227.76,227.69,17.640521]
[1731816554889,35.31092899,227.74,227.69,17.640521]
[1731816555090,35.31092899,227.76,227.71,0.1]
[1731816555305,13.14,227.91,227.69,0.1]
[1731816555508,35.31092899,227.7,227.57,1.33162284]
[1731816555714,35.31092899,227.7,227.56,0.1]
[1731816555715,35.31092899,227.66,227.56,35.51092899]
[1731816555919,35.31092899,227.76,227.69,0.1]
[1731816556300,35.31092899,227.71,227.69,0.1]
[1731816556692,35.31092899,227.71,227.64,0.1]
[1731816556914,35.31092899,227.78,227.62,0.1]
[1731816556915,35.31092899,227.67,227.62,0.1]
[1731816557610,35.31092899,227.65,227.62,0.1]
[1731816557807,35.31092899,227.63,227.6,0.1]
[1731816558013,35.31092899,227.63,227.62,0.1]
[1731816558313,35.31092899,227.65,227.62,0.1]
[1731816558824,13.14,227.89,227.65,0.2]
[1731816559118,35.31092899,227.68,227.63,0.1]
[1731816559596,35.31092899,227.69,227.63,0.1]
[1731816559797,35.31092899,227.65,227.61,0.1]
[1731816560110,35.31092899,227.63,227.61,0.1]
[1731816560290,35.31092899,227.63,227.55,0.1]
[1731816560497,35.31092899,227.6,227.55,0.1]
[1731816560901,35.31092899,227.58,227.55,0.1]
[1731816561510,35.31092899,227.6,227.57,0.1]
[1731816561814,35.31092899,227.6,227.55,0.1]
[1731816562515,35.31092899,227.58,227.54,0.1]
[1731816562718,13.14,227.71,227.51,0.9894431]
[1731816562892,0.25098,227.69,227.54,0.1]
[1731816563215,0.25098,227.69,227.56,35.31092899]
[1731816563216,35.31092899,227.65,227.56,35.31092899]
[1731816563515,35.31092899,227.63,227.54,0.1]
[1731816563695,35.31092899,227.63,227.51,0.9894431]
[1731816563696,35.31092899,227.55,227.51,0.9894431]
[1731816563894,0.12549,227.64,227.51,0.9894431]
[1731816563895,0.12549,227.68,227.51,36.40037209]
[1731816564212,35.31092899,227.56,227.55,0.87902589]
[1731816564517,0.25098,227.69,227.55,0.87902589]
[1731816564713,10.9793,227.7,227.55,0.87902589]
[1731816565313,35.31092899,227.59,227.55,0.87902589]
[1731816565513,35.31092899,227.57,227.55,0.87902589]
[1731816565811,0.09367462,227.56,227.55,0.75362589]
[1731816566017,24.12153862,227.56,227.55,0.75362589]
[1731816566212,0.12549,227.53,227.51,0.9894431]
[1731816566420,35.65558361,227.52,227.51,0.9894431]
[1731816566921,73.19078361,227.52,227.51,0.9894431]
[1731816567124,73.19078361,227.52,227.23,0.04408304]
[1731816567125,57.042374,227.51,227.38,2.19739062]
[1731816567417,4.3952,227.52,227.36,35.41092899]
[1731816567596,35.31092899,227.45,227.32,0.1]
[1731816567797,30.9871,227.54,227.2,13.254]
[1731816567798,4.3934,227.61,227.47,0.1]
[1731816568019,4.3934,227.61,227.3,0.1]
[1731816568020,4.3934,227.61,227.46,0.1]
[1731816568517,33.59642254,227.76,227.56,0.1]
[1731816568702,4.4670603,227.99,227.84,0.1]
[1731816568905,0.0808603,227.99,227.96,0.1]
[1731816569115,0.0808603,227.99,227.89,0.1]
[1731816569116,4.47263705,227.98,227.89,0.1]
[1731816569296,4.47263705,227.98,227.95,0.1]
[1731816569297,0.08623705,227.98,227.95,0.1]
[1731816569501,0.18603592,227.97,227.91,0.1]
[1731816570120,0.09636707,227.97,227.95,0.1]
[1731816570599,0.09636707,227.97,227.86,0.1]
[1731816570800,0.09636707,227.97,227.7,0.1]
[1731816570801,4.3867,227.96,227.87,0.1]
[1731816571000,35.31092899,227.94,227.87,0.1]
[1731816571305,4.3867,227.96,227.87,0.1]
[1731816571306,0.09367462,227.91,227.87,0.1]
[1731816571508,0.09367462,227.89,227.83,0.1]
[1731816572125,35.31092899,227.92,227.85,0.1]
[1731816572308,35.31092899,227.94,227.87,0.1]
[1731816572514,35.31092899,227.94,227.88,0.1]
[1731816572820,35.31092899,227.92,227.88,0.1]
[1731816573007,0.09636707,227.97,227.96,0.2]
[1731816573197,0.09636707,227.97,227.96,0.1]
[1731816573813,0.09636707,227.97,227.95,0.1]
[1731816574018,0.09636707,227.97,227.91,0.1]
[1731816574218,35.40729606,227.97,227.92,0.1]
[1731816574422,0.09636707,227.97,227.94,0.1]
[1731816574633,0.09636707,227.97,227.96,0.1]
[1731816579720,0.09636707,227.97,227.96,23.876884]
[1731816580116,0.08354227,227.99,227.96,23.876884]
[1731816580316,35.31092899,228.18,228.03,0.2]
[1731816580524,35.31092899,228.22,228.03,59.53879299]
[1731816580829,0.01923214,228.04,228.03,35.51092899]
[1731816581213,0.01923214,228.04,228.03,59.53879299]
[1731816581415,45.93,228.37,228.03,59.53879299]
[1731816581416,4.3769,228.47,228.31,0.1]
[1731816581616,35.31092899,228.39,228.35,0.1]
[1731816581913,35.31092899,228.43,228.34,0.2]
[1731816582134,4.3763,228.5,228.39,0.2]
[1731816582314,15.4084,228.63,228.39,35.31092899]
[1731816582515,15.4084,228.63,228.25,70.0]
[1731816582516,35.31092899,228.46,228.35,35.31092899]
[1731816582722,35.31092899,228.42,228.31,35.31092899]
[1731816582931,35.31092899,228.42,228.2,35.31092899]
[1731816582932,35.31092899,228.4,228.29,35.31092899]
[1731816583238,35.31092899,228.4,228.22,0.1]
[1731816583420,35.31092899,228.38,228.26,35.31092899]
[1731816583822,35.31092899,228.36,228.26,35.31092899]
[1731816584019,35.31092899,228.4,228.28,35.31092899]
[1731816584217,35.31092899,228.4,228.3,35.31092899]
[1731816584720,39.68772899,228.48,228.26,35.31092899]
[1731816584721,35.31092899,228.38,228.26,35.31092899]
[1731816584933,35.31092899,228.36,228.26,35.31092899]
[1731816585116,35.31092899,228.32,228.2,35.31092899]
[1731816585315,35.31092899,228.28,228.18,35.31092899]
[1731816585534,35.31092899,228.22,228.12,35.31092899]
[1731816585741,35.31092899,228.2,228.1,48.56782899]
[1731816585917,15.3207,228.45,228.14,0.2]
[1731816585918,35.31092899,228.33,228.14,0.2]
[1731816586120,35.31092899,228.25,228.15,35.31092899]
[1731816586419,35.31092899,228.23,228.13,34.81092899]
[1731816586754,35.31092899,228.23,228.12,35.31092899]
[1731816586936,35.31092899,228.21,228.1,13.2569]
[1731816587129,35.31092899,228.19,228.1,13.2569]
[1731816587324,35.31092899,228.21,228.1,13.2569]
[1731816587521,35.31092899,228.21,228.09,35.31092899]
[1731816588048,35.31092899,228.21,228.11,35.31092899]
[1731816588422,35.31092899,228.25,228.13,35.31092899]
[1731816588939,35.31092899,228.24,228.04,0.1]
[1731816589142,0.09367462,228.33,228.1,35.31092899]
[1731816589143,0.09367462,228.21,228.1,35.31092899]
[1731816589442,0.08170908,228.05,228.04,0.1]
[1731816589636,0.08733157,228.06,228.0,0.87666074]
[1731816589833,0.08733157,228.06,227.94,0.1]
[1731816590041,0.08733157,228.06,227.89,1.3523124]
[1731816590251,0.08733157,228.06,227.87,12.4283]
[1731816590252,0.18100619,228.06,227.87,12.4283]
[1731816590744,0.18100619,228.06,227.84,1.3523124]
[1731816590745,35.31092899,228.01,227.9,35.31092899]
[1731816590936,4.47223157,228.06,227.93,35.31092899]
[1731816590937,35.31092899,228.03,227.93,35.31092899]
[1731816591142,0.08733157,228.06,227.97,35.31092899]
[1731816591849,0.18100619,228.06,227.97,35.31092899]
[1731816592048,35.31092899,228.05,227.95,35.31092899]
[1731816592541,35.31092899,228.05,227.84,0.2]
[1731816592542,0.09367462,228.04,227.93,35.31092899]
[1731816593039,35.31092899,228.03,227.93,35.31092899]
[1731816593436,0.09367462,228.02,227.91,35.31092899]
[1731816593639,0.08733157,228.06,227.96,35.31092899]
[1731816593951,0.09367462,228.0,227.9,35.31092899]
[1731816594277,0.09367462,227.96,227.81,1.35090189]
[1731816594427,35.31092899,227.97,227.88,35.31092899]
[1731816594754,35.39826056,228.06,227.96,35.31092899]
[1731816594755,0.08733157,228.06,227.96,35.31092899]
[1731816595050,0.08733157,228.06,227.84,0.1]
[1731816595225,0.18100619,228.06,227.97,35.31092899]
[1731816596244,0.08733157,228.06,228.03,35.31092899]
[1731816596447,0.08733157,228.06,228.05,70.62185798]
[1731816597728,0.08733157,228.06,228.05,35.31092899]
[1731816598449,0.08733157,228.06,228.05,70.62185798]
[1731816598636,0.01945309,228.06,228.05,70.62185798]
[1731816599845,0.07095723,228.07,228.05,70.62185798]
[1731816600350,0.07095723,228.07,228.02,0.1]
[1731816600351,0.07095723,228.07,227.97,0.87670195]
[1731816600670,0.08744702,228.13,228.1,0.1]
[1731816600834,0.1875058,228.26,228.19,0.1]
[1731816601034,0.1875058,228.26,228.14,0.1]
[1731816601239,0.1875058,228.26,228.12,0.1]
[1731816601434,0.1875058,228.26,228.25,35.31092899]
[1731816602140,0.1875058,228.26,228.25,35.56190899]
[1731816602454,39.68632899,228.55,228.28,0.22549]
[1731816602657,39.68632899,228.55,228.26,70.12549]